bitfinex-derivatives/quotes_SOLF0:USTF0_20241008
["timestamp","ask_amount","ask_price","bid_price","bid_amount"]
[1728424401924,10.66,144.15,144.11,0.12502]
[1728424402110,3.46468416,144.14,144.11,3.59622]
[1728424402309,14.1306,144.15,144.11,0.12502]
[1728424402716,10.66,144.15,144.11,0.12502]
[1728424402914,3.4707,144.14,144.11,0.12502]
[1728424403123,3.50737234,144.13,144.11,0.12502]
[1728424403339,3.50737234,144.13,144.11,3.59632]
[1728424403626,3.50737234,144.13,144.11,0.12502]
[1728424403819,10.66,144.14,144.11,0.12502]
[1728424404140,7.00033702,144.13,144.11,0.12502]
[1728424405624,3.4712,144.12,144.11,0.12502]
[1728424409727,19.66923702,144.13,144.11,0.12502]
[1728424409920,23.14033702,144.13,144.11,0.12502]
[1728424410846,10.66,144.12,144.11,0.12502]
[1728424411030,14.1312,144.12,144.11,0.12502]
[1728424411221,15.36519879,144.12,144.11,0.12502]
[1728424411923,18.83639879,144.12,144.11,0.12502]
[1728424412125,14.1312,144.12,144.11,0.12502]
[1728424412329,18.83735937,144.12,144.11,0.12502]
[1728424417561,14.1312,144.12,144.11,0.12502]
[1728424417835,18.8438306,144.12,144.11,0.12502]
[1728424423435,8.1838306,144.12,144.11,0.12502]
[1728424423636,18.8438306,144.12,144.11,0.12502]
[1728424424148,14.1312,144.12,144.11,0.12502]
[1728424424433,18.85622912,144.12,144.11,0.12502]
[1728424431040,14.1312,144.12,144.11,0.12502]
[1728424431240,4.72245787,144.12,144.11,0.12502]
[1728424431460,10.66,144.12,144.11,0.12502]
[1728424431946,10.66,144.12,144.05,10.91632]
[1728424432245,9.00923702,144.13,144.05,10.91632]
[1728424432246,10.66,144.09,144.05,10.91632]
[1728424432739,4.72177066,144.08,144.05,10.91632]
[1728424432940,10.66,144.09,144.07,3.4722]
[1728424433144,4.72138916,144.08,144.07,3.4722]
[1728424434435,4.72138916,144.08,144.05,10.91632]
[1728424434634,10.66,144.09,144.05,10.91632]
[1728424434834,4.72048934,144.08,144.05,10.91632]
[1728424435040,10.66,144.09,144.08,3.4722]
[1728424435360,10.66,144.09,144.05,10.91632]
[1728424435361,15.38055049,144.09,144.05,10.91632]
[1728424435565,3.4726,144.06,144.05,10.91632]
[1728424435758,4.72055049,144.06,144.05,10.91632]
[1728424436342,10.66,144.07,144.05,10.91632]
[1728424436534,4.71880864,144.06,144.05,10.91632]
[1728424437639,4.71880864,144.06,144.05,14.38922]
[1728424438739,4.71741354,144.07,144.06,3.4726]
[1728424441850,10.66,144.08,144.05,10.91632]
[1728424442033,10.66,144.08,144.05,14.38902]
[1728424442240,4.715937,144.07,144.05,14.38902]
[1728424442538,4.715937,144.07,144.05,10.91632]
[1728424442846,10.66,144.07,144.06,3.4726]
[1728424443139,4.715937,144.07,144.06,3.4726]
[1728424443346,4.715937,144.08,144.07,3.4724]
[1728424443540,15.375937,144.08,144.07,3.4724]
[1728424443733,15.375937,144.08,144.05,10.91632]
[1728424444040,10.66,144.07,144.05,10.91632]
[1728424444445,4.71531443,144.07,144.05,14.38902]
[1728424444639,10.66,144.07,144.05,14.38902]
[1728424444951,15.37531443,144.07,144.05,14.38902]
[1728424445153,10.66,144.07,144.05,14.38902]
[1728424445449,15.3748502,144.07,144.05,14.38902]
[1728424445638,8.9521,144.09,144.05,10.91632]
[1728424445944,4.71481964,144.08,144.06,3.4726]
[1728424446140,4.71481964,144.07,144.06,3.4726]
[1728424446342,10.66,144.08,144.06,3.4726]
[1728424446738,4.71461632,144.07,144.06,3.4726]
[1728424447246,10.66,144.08,144.06,3.4726]
[1728424447547,4.71444909,144.07,144.06,3.4726]
[1728424450748,10.66,144.08,144.06,3.4726]
[1728424451549,8.9519,144.09,144.06,3.4726]
[1728424451748,10.66,144.07,144.06,3.4726]
[1728424454750,10.66,144.07,144.05,10.91632]
[1728424454948,10.66,144.07,144.05,14.38912]
[1728424456249,3.4722,144.08,144.05,14.38912]
[1728424456447,3.4722,144.08,144.06,3.4726]
[1728424456747,4.71338768,144.07,144.06,3.4726]
[1728424457149,4.71338768,144.07,144.05,14.38912]
[1728424457751,15.37338768,144.07,144.05,14.38912]
[1728424458458,10.66,144.07,144.05,14.38912]
[1728424458753,15.3739045,144.07,144.05,14.38912]
[1728424463356,10.66,144.07,144.05,14.38912]
[1728424466558,3.4722,144.08,144.06,3.4726]
[1728424466752,4.71764015,144.07,144.06,3.4726]
[1728424471959,4.72083812,144.07,144.06,3.4726]
[1728424478571,4.72372388,144.07,144.06,3.4726]
[1728424483977,3.52923702,144.13,144.09,3.4717]
[1728424484274,15.82,144.12,144.09,3.4717]
[1728424484575,10.66,144.11,144.09,3.4717]
[1728424487682,5.16,144.12,144.09,3.4717]
[1728424487871,10.66,144.11,144.09,3.4717]
[1728424489480,8.6313,144.12,144.09,3.4717]
[1728424489672,10.66,144.11,144.09,3.4717]
[1728424493685,8.6313,144.12,144.09,3.4717]
[1728424493885,10.66,144.1,144.09,3.4717]
[1728424494086,10.66,144.1,144.08,3.4721]
[1728424495285,3.4714,144.11,144.08,3.4721]
[1728424495580,10.66,144.1,144.08,3.4721]
[1728424502291,3.4714,144.11,144.08,3.4721]
[1728424502489,10.66,144.1,144.08,3.4721]
[1728424507393,14.1314,144.11,144.08,3.4721]
[1728424510401,3.4714,144.11,144.08,3.4721]
[1728424510706,3.49911125,144.13,144.12,3.4712]
[1728424510992,10.66,144.15,144.12,3.4712]
[1728424511192,14.12230774,144.15,144.12,3.4712]
[1728424511390,17.59280774,144.15,144.12,3.4712]
[1728424512190,14.12230774,144.15,144.12,3.4712]
[1728424515403,14.12230774,144.15,144.11,3.4713]
[1728424515598,14.12230774,144.15,144.1,2.761]
[1728424516102,14.12230774,144.15,144.13,3.4708]
[1728424526408,3.46230774,144.15,144.13,3.4708]
[1728424534722,3.46230774,144.15,144.14,3.4707]
[1728424534925,14.25522,144.17,144.14,3.4707]
[1728424535629,17.78872364,144.17,144.14,3.4707]
[1728424537020,7.12872364,144.17,144.14,3.4707]
[1728424537224,17.78872364,144.17,144.14,3.4707]
[1728424540227,17.78872364,144.17,144.15,3.4705]
[1728424540427,17.78872364,144.17,144.15,11.4705]
[1728424544729,3.65852364,144.17,144.15,11.4705]
[1728424568056,3.65852364,144.17,144.16,3.4702]
[1728424588069,0.12502,144.17,144.16,3.4702]
[1728424607382,0.12502,144.17,144.16,11.4702]
[1728424607580,1.3922,144.25,144.22,3.4688]
[1728424607581,0.12502,144.23,144.22,3.4688]
[1728424607888,3.53391665,144.23,144.22,11.4688]
[1728424608083,0.12502,144.23,144.22,11.4688]
[1728424619099,0.12502,144.23,144.22,22.1288]
[1728424619803,0.12502,144.23,144.22,14.1288]
[1728424622812,0.12502,144.23,144.22,22.1288]
[1728424626808,0.12502,144.29,144.22,18.66]
[1728424627012,0.12502,144.29,144.28,3.4673]
[1728424627409,3.67327646,144.29,144.28,3.4673]
[1728424627711,0.12502,144.29,144.28,3.4673]
[1728424628207,3.67743782,144.29,144.28,3.4673]
[1728424628413,0.12502,144.29,144.28,3.4673]
[1728424631816,0.12502,144.29,144.28,11.4673]
[1728424632315,0.12502,144.29,144.28,22.1273]
[1728424636915,0.12502,144.29,144.28,14.1273]
[1728424637217,0.12502,144.29,144.28,19.2473]
[1728424640124,0.12502,144.29,144.28,14.1273]
[1728424640307,0.12502,144.29,144.28,19.2473]
[1728424640711,0.12502,144.29,144.28,27.2473]
[1728424642712,89.19806827,144.35,144.34,3.4659]
[1728424642911,89.19806827,144.35,144.34,11.4659]
[1728424644613,0.12502,144.35,144.34,11.4659]
[1728424645013,0.12502,144.35,144.34,22.1259]
[1728424651726,0.12502,144.35,144.34,11.4659]
[1728424651924,0.12502,144.35,144.34,8.0]
[1728424652626,3.59072,144.35,144.34,8.0]
[1728424663141,15.90502,144.35,144.26,7.8202]
[1728424663433,10.66,144.31,144.26,18.4802]
[1728424663834,3.467,144.3,144.27,3.4674]
[1728424664429,3.4671,144.29,144.27,3.4674]
[1728424664625,3.4671,144.29,144.26,7.8202]
[1728424664626,10.66,144.31,144.26,2.7002]
[1728424664946,10.66,144.3,144.25,10.66]
[1728424665135,3.4673,144.28,144.25,10.66]
[1728424665633,3.4673,144.28,144.26,3.4678]
[1728424665834,3.4672,144.29,144.26,3.4678]
[1728424669035,0.1248,144.34,144.27,10.66]
[1728424669240,0.1248,144.34,144.29,10.66]
[1728424670336,3.4661,144.34,144.3,3.4668]
[1728424670537,15.90502,144.35,144.3,3.4668]
[1728424671221,3.4663,144.33,144.3,3.4668]
[1728424672442,15.90502,144.35,144.3,3.4668]
[1728424673531,3.4663,144.33,144.3,3.4668]
[1728424679534,3.4664,144.32,144.3,3.4668]
[1728424680034,3.4664,144.32,144.28,10.66]
[1728424680353,3.4664,144.32,144.29,3.467]
[1728424682941,3.4662,144.33,144.3,3.4667]
[1728424695857,5.24502,144.35,144.28,10.66]
[1728424696152,14.1261,144.34,144.31,3.4665]
[1728424697058,3.4662,144.33,144.31,3.4665]
[1728424697454,3.4662,144.33,144.3,3.4667]
[1728424703066,10.66,144.34,144.28,10.66]
[1728424703776,10.66,144.29,144.25,2.7899]
[1728424703963,10.66,144.26,144.21,1.3645]
[1728424704169,0.12502,144.35,144.18,4.7738]
[1728424704170,14.1283,144.24,144.18,4.7738]
[1728424706273,14.1283,144.24,144.19,3.4695]
[1728424708583,14.1283,144.24,144.18,4.7737]
[1728424720684,14.1283,144.24,144.19,3.4695]
[1728424723082,10.66,144.24,144.17,1.45632]
[1728424723288,3.4697,144.19,144.17,1.45632]
[1728424726685,14.08033492,144.2,144.17,0.12502]
[1728424726882,3.4697,144.18,144.17,0.12502]
[1728424731893,3.4696,144.19,144.17,0.12502]
[1728424737486,14.1297,144.18,144.17,0.12502]
[1728424737697,10.66,144.18,144.13,2.6861]
[1728424737900,10.66,144.15,144.13,2.6861]
[1728424738500,14.1306,144.15,144.13,2.6861]
[1728424740400,10.66,144.15,144.13,2.6861]
[1728424740609,10.66,144.15,144.11,3.59632]
[1728424740610,3.4708,144.14,144.11,0.12502]
[1728424740899,10.66,144.12,144.11,0.12502]
[1728424741698,17.64683619,144.12,144.11,0.12502]
[1728424746212,6.98683619,144.12,144.11,0.12502]
[1728424746503,17.64683619,144.12,144.11,0.12502]
[1728424750000,3.51563619,144.12,144.11,0.12502]
[1728424750200,14.1308,144.14,144.11,0.12502]
[1728424750401,338.42033492,144.2,144.11,0.12502]
[1728424750608,5.12,144.17,144.11,10.78502]
[1728424750804,10.66,144.16,144.14,3.4707]
[1728424750999,3.43414302,144.15,144.14,3.4707]
[1728424751200,10.66,144.16,144.14,3.4707]
[1728424751804,14.16876057,144.16,144.13,3.4708]
[1728424752002,10.66,144.16,144.12,1.4094]
[1728424754008,10.66,144.16,144.13,2.8207]
[1728424754505,10.66,144.16,144.14,3.4706]
[1728424755109,10.66,144.16,144.13,2.8207]
[1728424755303,10.66,144.16,144.14,3.4705]
[1728424756406,8.66589583,144.17,144.14,3.4706]
[1728424756607,10.66,144.16,144.14,3.4706]
[1728424757602,12.13609583,144.17,144.14,3.4706]
[1728424757830,3.54589583,144.17,144.14,3.4706]
[1728424758026,10.66,144.16,144.14,3.4706]
[1728424758309,75.06502,144.23,144.14,10.66]
[1728424758512,10.66,144.19,144.14,10.66]
[1728424758711,10.66,144.19,144.14,15.78]
[1728424760414,14.1295,144.19,144.16,3.4701]
[1728424761430,10.66,144.18,144.16,3.4701]
[1728424764213,10.66,144.17,144.15,3.4703]
[1728424764418,10.66,144.16,144.14,5.12]
[1728424765311,10.66,144.16,144.14,8.5906]
[1728424766221,10.66,144.16,144.14,5.12]
[1728424766421,10.66,144.16,144.15,3.4705]
[1728424768139,14.1301,144.17,144.15,3.4705]
[1728424770621,10.66,144.17,144.15,3.4705]
[1728424773916,3.4698,144.18,144.15,3.4705]
[1728424773917,14.1298,144.18,144.15,3.4705]
[1728424777517,10.66,144.22,144.16,10.66]
[1728424778625,10.66,144.22,144.18,3.4695]
[1728424780032,10.66,144.22,144.16,10.66]
[1728424780224,3.469,144.21,144.19,3.4695]
[1728424780716,10.66,144.22,144.14,5.12]
[1728424780922,3.4694,144.2,144.14,5.12]
[1728424781121,10.66,144.21,144.15,10.66]
[1728424782029,14.1291,144.21,144.18,3.4696]
[1728424786544,3.4691,144.21,144.16,10.66]
[1728424786740,7.0825662,144.23,144.18,10.66]
[1728424786933,3.6139662,144.23,144.18,10.66]
[1728424787121,3.6139662,144.23,144.18,13.3368]
[1728424787515,7.0825662,144.23,144.18,13.3368]
[1728424788219,17.7425662,144.23,144.18,13.3368]
[1728424788428,17.7425662,144.23,144.2,3.4691]
[1728424791823,14.2739662,144.23,144.2,3.4691]
[1728424792028,10.78502,144.23,144.21,3.4689]
[1728424792229,10.78502,144.23,144.18,13.3368]
[1728424793432,10.78502,144.23,144.21,3.469]
[1728424800530,10.66,144.22,144.18,2.6768]
[1728424800731,10.66,144.22,144.2,3.4691]
[1728424801130,10.78502,144.23,144.21,3.469]
[1728424801433,10.78502,144.23,144.18,2.6768]
[1728424801631,0.12502,144.23,144.18,2.6768]
[1728424801833,10.66,144.22,144.18,2.6768]
[1728424802434,0.12502,144.23,144.18,13.3368]
[1728424802753,0.12502,144.23,144.2,10.66]
[1728424803048,0.12502,144.23,144.2,15.76]
[1728424803625,0.12502,144.23,144.22,3.4688]
[1728424806038,0.12502,144.23,144.22,14.1288]
[1728424810832,0.12502,144.23,144.22,3.4688]
[1728424811033,0.12502,144.23,144.22,14.1288]
[1728424813934,0.12502,144.23,144.22,3.4688]
[1728424814745,3.4688,144.22,144.19,3.4694]
[1728424814942,10.66,144.21,144.19,3.4694]
[1728424815236,10.66,144.21,144.18,7.7768]
[1728424815237,10.66,144.21,144.18,2.6768]
[1728424815452,3.4701,144.17,144.14,3.4706]
[1728424815632,10.66,144.17,144.13,6.5206]
[1728424816034,10.66,144.17,144.13,1.4206]
[1728424816346,10.66,144.16,144.14,3.4707]
[1728424817238,10.66,144.16,144.12,2.7213]
[1728424817434,10.66,144.16,144.12,6.1924]
[1728424817435,10.66,144.15,144.12,6.1924]
[1728424818755,10.66,144.15,144.12,3.4711]
[1728424820844,14.1306,144.15,144.11,3.59632]
[1728424821146,5.1,144.17,144.11,0.12502]
[1728424821147,10.66,144.14,144.11,0.12502]
[1728424821645,14.1309,144.14,144.11,3.59632]
[1728424822046,10.66,144.14,144.11,3.59632]
[1728424826550,14.1309,144.14,144.11,3.59632]
[1728424827953,3.4709,144.14,144.11,3.59632]
[1728424828153,14.1309,144.14,144.11,3.59632]
[1728424835252,3.4712,144.12,144.11,0.12502]
[1728424835565,10.66,144.12,144.05,0.12502]
[1728424835758,10.66,144.1,144.05,0.12502]
[1728424835957,15.76,144.1,144.05,0.12502]
[1728424836160,3.472,144.09,144.06,3.4725]
[1728424836563,6.97267681,144.09,144.05,0.12502]
[1728424837571,6.97267681,144.09,144.07,3.4724]
[1728424838159,5.1,144.1,144.08,3.4719]
[1728424839767,3.4711,144.13,144.09,3.4717]
[1728424839958,3.4711,144.13,144.08,10.66]
[1728424839959,19.2311,144.13,144.08,10.66]
[1728424840160,15.76,144.13,144.08,10.66]
[1728424841381,3.4712,144.12,144.09,3.4718]
[1728424842471,10.66,144.12,144.1,3.4716]
[1728424843675,14.1314,144.12,144.07,3.4722]
[1728424843972,10.66,144.11,144.06,2.7492]
[1728424844704,10.66,144.11,144.09,3.4718]
[1728424846781,14.1314,144.12,144.09,3.4718]
[1728424847069,10.66,144.12,144.1,3.4715]
[1728424853179,14.1313,144.12,144.06,2.7492]
[1728424853472,14.1313,144.12,144.06,13.4092]
[1728424853671,3.4715,144.11,144.08,3.4719]
[1728424853885,5.1,144.13,144.08,3.4719]
[1728424853886,10.66,144.1,144.08,3.4719]
[1728424858475,14.1317,144.1,144.06,2.7492]
[1728424858773,14.1317,144.1,144.07,3.4722]
[1728424859777,14.1317,144.1,144.08,3.4722]
[1728424860179,10.66,144.1,144.08,3.4722]
[1728424860379,14.1311,144.13,144.1,3.4715]
[1728424860582,19.2311,144.13,144.1,3.4715]
[1728424862885,19.2311,144.13,144.11,3.4714]
[1728424863077,10.66,144.13,144.11,3.4714]
[1728424863280,1.54412,144.17,144.06,2.7492]
[1728424863281,1.54412,144.17,144.09,10.66]
[1728424863492,0.12502,144.17,144.11,10.66]
[1728424863677,0.12502,144.17,144.12,13.2967]
[1728424864188,0.12502,144.17,144.15,3.4703]
[1728424870886,10.78502,144.17,144.15,3.4703]
[1728424881811,14.25502,144.17,144.14,3.4707]
[1728424890209,10.66,144.16,144.12,2.6367]
[1728424890511,0.12502,144.17,144.09,12.0851]
[1728424890512,10.66,144.13,144.09,5.1]
[1728424890697,14.1315,144.11,144.08,3.4721]
[1728424891414,14.1315,144.11,144.09,3.4719]
[1728424891704,10.66,144.11,144.09,3.4719]
[1728424894908,14.1312,144.12,144.09,3.4719]
[1728424897514,5.1,144.14,144.07,15.76]
[1728424897700,14.1311,144.13,144.1,3.4716]
[1728424898615,14.1311,144.13,144.08,10.66]
[1728424898801,10.66,144.13,144.11,3.4713]
[1728424909824,10.66,144.13,144.07,5.1]
[1728424910024,14.1311,144.13,144.1,3.4716]
[1728424911725,3.4713,144.12,144.09,3.4719]
[1728424917137,10.66,144.13,144.07,15.76]
[1728424917360,14.1311,144.13,144.1,3.4716]
[1728424920731,3.4711,144.13,144.1,3.4716]
[1728424920936,5.1,144.14,144.07,15.74]
[1728424920937,15.76,144.14,144.12,3.4711]
[1728424923035,5.1,144.14,144.12,3.4711]
[1728424925730,8.5707,144.14,144.09,15.74]
[1728424925930,8.5707,144.14,144.11,3.4713]
[1728424926332,10.66,144.13,144.08,5.08]
[1728424926630,10.66,144.11,144.06,2.7041]
[1728424927634,10.66,144.1,144.07,3.4722]
[1728424928633,14.17077602,144.1,144.07,3.4722]
[1728424929844,17.64267602,144.1,144.07,3.4722]
[1728424935943,17.64267602,144.1,144.06,2.7041]
[1728424936146,17.64267602,144.1,144.08,3.4721]
[1728424936645,6.98267602,144.1,144.08,3.4721]
[1728424936948,17.64267602,144.1,144.08,3.4721]
[1728424938245,17.64267602,144.1,144.07,3.4723]
[1728424938448,17.64267602,144.1,144.06,2.7041]
[1728424939071,17.64267602,144.1,144.07,3.4723]
[1728424940546,14.17077602,144.1,144.06,2.7041]
[1728424940845,14.17077602,144.1,144.05,0.12502]
[1728424940846,3.4726,144.06,144.05,0.12502]
[1728424941237,14.1326,144.06,144.05,0.12502]
[1728424943645,10.66,144.06,143.99,0.12502]
[1728424943839,10.66,144.02,143.99,0.12502]
[1728424944044,10.66,144.02,144.0,3.4739]
[1728424944349,3.4741,144.0,143.99,0.12502]
[1728424944742,8.5541,144.0,143.99,0.12502]
[1728424946656,3.4743,143.99,143.98,0.09186908]
[1728424946947,14.1343,143.99,143.98,0.09186908]
[1728424947145,17.61843908,143.99,143.98,0.09186908]
[1728424948376,14.1355,143.94,143.93,0.23317791]
[1728424948556,19.2355,143.94,143.93,0.23317791]
[1728424948749,22.63940974,143.94,143.93,0.23317791]
[1728424949549,8.5755,143.94,143.93,0.23317791]
[1728424949748,3.49007587,143.96,143.93,3.70877791]
[1728424949962,5.08,144.02,143.94,10.66]
[1728424950155,10.66,144.0,143.94,10.66]
[1728424950343,10.66,144.0,143.94,15.74]
[1728424950547,3.4744,143.99,143.95,3.4751]
[1728424950747,14.1344,143.99,143.95,3.4751]
[1728424950947,10.66,143.99,143.95,3.4751]
[1728424951148,3.4746,143.98,143.95,3.4751]
[1728424951650,14.1344,143.99,143.95,3.4751]
[1728424955449,10.66,143.98,143.95,3.4751]
[1728424955655,10.66,143.96,143.93,0.23317791]
[1728424955856,10.66,143.95,143.93,0.23317791]
[1728424956249,3.4755,143.94,143.93,0.23317791]
[1728424961954,20.84,144.02,143.93,0.23317791]
[1728424962160,10.66,143.97,143.94,3.4755]
[1728424962459,10.66,143.97,143.94,4.8044]
[1728424963062,14.1348,143.97,143.94,4.8044]
[1728424963559,10.66,143.97,143.94,4.8044]
[1728424963953,5.08,144.01,143.96,3.4749]
[1728424964158,10.66,143.97,143.96,3.4749]
[1728424964364,10.66,143.97,143.94,1.3289]
[1728424964562,10.66,143.97,143.95,3.4752]
[1728424964953,5.08,144.01,143.94,1.3289]
[1728424965156,10.66,143.98,143.96,3.475]
[1728424967162,10.66,143.98,143.94,1.3289]
[1728424967361,3.4752,143.96,143.94,1.3289]
[1728424967671,10.66,143.97,143.94,1.3289]
[1728424967868,10.66,143.97,143.95,3.4753]
[1728424968671,5.08,144.01,143.93,0.23317791]
[1728424968672,10.66,143.96,143.93,0.23317791]
[1728424968871,10.66,143.94,143.93,0.23317791]
[1728424969576,14.1355,143.94,143.93,0.23317791]
[1728424973275,3.4755,143.94,143.93,0.23317791]
[1728424973481,335.0,144.03,143.93,0.23317791]
[1728424973684,90.56190747,144.04,143.93,0.23317791]
[1728424973882,1.27722602,144.03,143.93,0.23317791]
[1728424974077,10.66,143.98,143.96,3.4749]
[1728424975578,5.08,144.02,143.94,15.74]
[1728424975579,3.4739,144.01,143.98,3.4744]
[1728424975881,10.66,144.0,143.98,3.4744]
[1728424979981,10.66,144.01,143.97,5.08]
[1728424980584,10.66,144.01,144.0,3.4741]
[1728424980788,92.72550747,144.04,143.98,10.66]
[1728424980982,99.91230747,144.04,143.99,10.66]
[1728424981283,99.91230747,144.04,144.02,3.4735]
[1728424984475,99.91230747,144.04,144.03,3.4734]
[1728424985187,89.25230747,144.04,144.03,3.4734]
[1728424985385,99.91230747,144.04,144.03,3.4734]
[1728424985775,0.12502,144.05,144.04,3.4731]
[1728424985982,78.54329784,144.18,144.03,15.74]
[1728424985983,1.3534,144.15,144.03,15.74]
[1728424986210,1.3534,144.15,144.04,5.08]
[1728424986405,10.66,144.09,144.04,5.08]
[1728424987483,10.66,144.09,144.06,3.4725]
[1728424987686,10.66,144.09,144.04,5.08]
[1728424988076,10.66,144.1,144.07,3.4722]
[1728424988482,3.59652,144.11,144.07,3.4722]
[1728424990580,3.44054236,144.1,144.07,3.4722]
[1728424990889,3.4728,144.06,144.03,1.385]
[1728424991244,20.14567561,144.08,144.03,1.385]
[1728424991498,3.4731,144.05,144.03,1.385]
[1728424992097,3.4729,144.05,144.03,1.385]
[1728424995303,3.4729,144.05,144.02,3.4736]
[1728425002499,16.66,144.06,144.0,1.3681]
[1728425002696,3.4732,144.04,144.01,3.4738]
[1728425005109,16.66,144.06,144.0,1.3681]
[1728425005311,3.4737,144.02,144.0,1.3681]
[1728425007221,3.4737,144.02,143.99,4.96062]
[1728425007409,16.66,144.04,143.99,4.96062]
[1728425007615,3.474,144.01,143.99,1.48642]
[1728425009202,3.474,144.01,143.99,4.96072]
[1728425010541,3.474,144.01,143.99,1.48642]
[1728425011607,10.67,144.02,143.99,1.48642]
[1728425011806,10.67,144.04,143.99,12.15642]
[1728425012408,10.67,144.04,144.02,3.4735]
[1728425013816,14.1431,144.04,144.01,3.4737]
[1728425014409,3.4734,144.03,144.01,3.4737]
[1728425015519,14.1433,144.04,144.01,3.4737]
[1728425031229,3.48567561,144.08,143.99,17.23642]
[1728425031554,5.08,144.1,144.03,10.67]
[1728425031739,10.67,144.09,144.03,15.75]
[1728425031932,17.64882127,144.09,144.04,10.67]
[1728425032633,17.64882127,144.09,144.05,3.4728]
[1728425032832,17.64882127,144.09,144.04,10.67]
[1728425034632,17.64882127,144.09,144.06,3.4724]
[1728425035836,14.17682127,144.09,144.07,3.4724]
[1728425037747,17.64882127,144.09,144.07,3.4724]
[1728425040550,6.97882127,144.09,144.07,3.4724]
[1728425040744,17.64882127,144.09,144.07,3.4724]
[1728425042863,0.12502,144.11,144.08,10.67]
[1728425043143,0.12502,144.11,144.09,5.08]
[1728425043342,0.12502,144.11,144.1,3.4717]
[1728425047853,0.12502,144.11,144.09,3.4718]
[1728425053361,0.12502,144.11,144.07,17.1418]
[1728425053658,0.12502,144.11,144.1,3.4717]
[1728425054916,0.12502,144.11,144.04,1.3552]
[1728425054917,10.79502,144.11,144.04,1.3552]
[1728425055179,10.67,144.06,144.01,17.1072]
[1728425055288,14.05591249,144.06,144.01,17.1072]
[1728425055483,17.52861249,144.06,144.03,3.4733]
[1728425055857,10.67,144.04,144.01,6.4372]
[1728425056263,0.12502,144.11,144.03,10.67]
[1728425056569,14.1428,144.06,144.01,6.4372]
[1728425056752,10.67,144.06,144.01,17.1072]
[1728425057563,14.1427,144.06,144.01,17.1072]
[1728425057968,14.1427,144.06,144.01,12.0272]
[1728425058165,14.1427,144.06,144.01,17.1072]
[1728425058358,14.1427,144.06,144.03,3.4732]
[1728425059365,10.67,144.04,144.01,1.3572]
[1728425059569,10.67,144.04,144.0,1.3419]
[1728425059765,3.4734,144.03,144.0,4.8158]
[1728425060177,10.67,144.04,144.0,1.3419]
[1728425060368,3.53899712,144.08,144.01,10.67]
[1728425060679,10.67,144.1,144.05,10.67]
[1728425061068,14.19488827,144.1,144.05,10.67]
[1728425061291,10.67,144.07,144.03,1.3586]
[1728425062474,5.08,144.09,144.04,10.67]
[1728425062975,17.66668827,144.1,144.04,10.67]
[1728425063672,0.12502,144.11,144.03,1.3586]
[1728425063862,0.12502,144.11,144.06,10.67]
[1728425064055,10.67,144.09,144.05,15.75]
[1728425064259,10.67,144.08,144.05,3.4727]
[1728425064672,3.473,144.05,144.01,5.08]
[1728425064875,10.67,144.05,144.03,3.4731]
[1728425065112,10.67,144.08,144.03,10.67]
[1728425065369,10.67,144.08,144.05,3.4726]
[1728425065370,3.4722,144.08,144.05,3.4726]
[1728425065570,10.79502,144.11,144.0,2.7127]
[1728425065767,10.67,144.06,144.01,5.08]